bitfinex/quotes_ETHUSD_20250112
["timestamp","ask_amount","ask_price","bid_price","bid_amount"]
[1736665970270,0.09973275,3269.4,3269.3,0.03808558]
[1736665970416,0.211,3269.6,3269.3,0.5948535]
[1736665970812,0.47924343,3270.0,3269.5,0.0075]
[1736665971129,0.31092072,3269.9,3269.5,0.04558213]
[1736665972314,0.31092072,3269.9,3269.5,2.18656213]
[1736665973846,0.31092072,3269.9,3269.5,0.04558213]
[1736665974043,0.31092072,3269.9,3269.5,1.16018636]
[1736665975531,0.09992072,3269.9,3269.5,1.16018636]
[1736665983358,0.09992072,3269.9,3269.6,0.03058051]
[1736665984549,0.211,3270.0,3269.5,1.16018636]
[1736665985981,0.10009045,3269.9,3269.5,1.16018636]
[1736665986186,0.211,3270.0,3269.5,1.16018636]
[1736665986386,0.10009045,3269.9,3269.5,1.16018636]
[1736665986555,0.211,3270.0,3269.6,0.45485999]
[1736665986774,0.10009045,3269.9,3269.5,1.16018636]
[1736665986976,0.211,3270.0,3269.5,1.16018636]
[1736665987175,0.10009045,3269.9,3269.5,1.16018636]
[1736665987370,0.211,3270.0,3269.5,1.16018636]
[1736665987604,0.10009045,3269.9,3269.5,1.16018636]
[1736665987903,0.211,3270.0,3269.5,1.16018636]
[1736665988102,0.211,3270.0,3269.5,0.015]
[1736665988263,0.10009045,3269.9,3269.5,0.015]
[1736665988587,0.211,3270.0,3269.5,0.015]
[1736665988792,0.10009045,3269.9,3269.5,0.015]
[1736665989106,0.211,3270.0,3269.5,0.015]
[1736665989478,0.10009045,3269.9,3269.5,0.015]
[1736665989880,0.211,3270.0,3269.5,0.015]
[1736665990205,0.10010635,3269.9,3269.5,0.015]
[1736665990382,0.211,3270.0,3269.5,0.015]
[1736665990717,0.10010635,3269.9,3269.5,0.015]
[1736665991010,0.211,3270.0,3269.5,0.015]
[1736665991181,0.10010635,3269.9,3269.5,0.015]
[1736665991381,0.211,3270.0,3269.5,0.015]
[1736665991596,0.10035017,3269.9,3269.5,0.015]
[1736665991898,0.211,3270.0,3269.5,0.015]
[1736665992213,0.10035017,3269.9,3269.5,0.015]
[1736665992508,0.211,3270.0,3269.5,0.015]
[1736665992883,0.10035017,3269.9,3269.5,0.015]
[1736665993384,0.211,3270.0,3269.5,0.015]
[1736665993615,0.10027434,3269.9,3269.4,3.38841359]
[1736665993826,0.24519843,3269.8,3269.3,5.32]
[1736665993966,0.7561,3269.4,3269.3,5.32]
[1736665994320,0.85632979,3269.4,3268.9,1.0]
[1736665994621,0.88382988,3269.4,3268.9,1.0]
[1736665994828,0.85632979,3269.4,3268.9,1.0]
[1736665995638,0.88382988,3269.4,3268.9,1.0]
[1736665995931,1.18631487,3269.4,3268.9,1.0]
[1736665996395,1.15881478,3269.4,3268.9,1.0]
[1736665996592,1.18631487,3269.4,3268.9,1.0]
[1736665996895,1.15881478,3269.4,3268.9,1.0]
[1736665997091,1.18631487,3269.4,3268.9,1.0]
[1736665997693,0.33273349,3269.3,3268.9,1.0]
[1736665998058,0.31093838,3269.2,3268.9,1.0]
[1736665998372,0.211,3269.2,3268.9,1.0]
[1736665998586,0.85598831,3269.1,3268.9,1.0]
[1736665998910,0.02750009,3269.0,3268.9,1.0]
[1736665999225,0.12692326,3269.0,3268.9,1.0]
[1736666001522,0.45044559,3269.0,3268.9,1.0]
[1736666002917,0.12692326,3269.0,3268.9,1.0]
[1736666008955,2.26824326,3269.0,3268.9,1.0]
[1736666009835,6.63174326,3269.0,3268.9,1.0]
[1736666010033,6.60424317,3269.0,3268.9,1.0]
[1736666020598,9.16705676,3269.0,3268.9,1.0]
[1736666020888,16.26453423,3269.0,3268.9,1.0]
[1736666021258,16.64658683,3269.0,3268.9,1.0]
[1736666021459,17.03547144,3269.0,3268.9,1.0]
[1736666024607,22.03547144,3269.0,3268.9,1.0]
[1736666024759,16.64658683,3269.0,3268.9,1.0]
[1736666026457,21.07626884,3269.0,3268.9,1e-05]
[1736666026660,21.45832144,3269.0,3268.9,1e-05]
[1736666026887,19.17187144,3269.0,3268.9,1e-05]
[1736666027272,24.48187144,3269.0,3268.9,1e-05]
[1736666027855,19.23265785,3269.0,3268.9,1e-05]
[1736666028203,15.67072064,3269.0,3268.9,1e-05]
[1736666028559,19.22072064,3269.0,3268.9,1e-05]
[1736666033279,13.91072064,3269.0,3268.9,1e-05]
[1736666033481,14.29277324,3269.0,3268.9,1e-05]
[1736666034174,2.14145,3268.8,3268.7,2.2e-06]
[1736666034373,17.94100206,3268.8,3268.7,2.2e-06]
[1736666036274,18.15000206,3268.8,3268.7,2.2e-06]
[1736666038617,18.7681404,3268.8,3268.7,2.2e-06]
[1736666039023,11.68982681,3268.8,3268.7,2.2e-06]
[1736666039182,8.56692894,3268.8,3268.7,0.7772022]
[1736666039903,12.11692894,3268.8,3268.7,0.7772022]
[1736666040308,9.11692894,3268.8,3268.7,0.7772022]
[1736666040693,12.11692894,3268.8,3268.7,0.7772022]
[1736666041838,11.56692894,3268.8,3268.7,0.7772022]
[1736666042222,9.21647894,3268.8,3268.7,0.7772022]
[1736666042427,6.42547894,3268.8,3268.7,0.7772022]
[1736666044645,6.21647894,3268.8,3268.7,0.7772022]
[1736666044847,6.42547894,3268.8,3268.7,0.7772022]
[1736666045714,6.21647894,3268.8,3268.7,0.7772022]
[1736666045924,6.42547894,3268.8,3268.7,0.7772022]
[1736666047429,6.21647894,3268.8,3268.7,0.7772022]
[1736666057162,6.21647894,3268.8,3268.7,1.09464655]
[1736666057467,6.1182,3268.8,3268.7,1.09464655]
[1736666057675,6.19584695,3268.8,3268.7,1.09464655]
[1736666057969,6.19584695,3268.8,3268.7,3.23616655]
[1736666058480,6.19584695,3268.8,3268.7,1.09464655]
[1736666065482,6.19584695,3268.8,3268.7,3.23616655]
[1736666068193,6.19584695,3268.8,3268.7,1.09464655]
[1736666068388,6.1182,3268.8,3268.7,1.09464655]
[1736666068798,6.19589492,3268.8,3268.7,3.23616655]
[1736666069100,6.19589492,3268.8,3268.7,3.24366655]
[1736666069468,6.19589492,3268.8,3268.7,3.27425636]
[1736666070875,6.19589492,3268.8,3268.7,3.24366655]
[1736666071386,6.19589492,3268.8,3268.7,4.45814266]
[1736666071595,6.1182,3268.8,3268.7,4.48873113]
[1736666071913,6.1933228,3268.8,3268.7,4.48873113]
[1736666072412,6.1933228,3268.8,3268.7,4.45814266]
[1736666072591,6.1933228,3268.8,3268.7,4.48873113]
[1736666073117,6.1933228,3268.8,3268.7,9.80873113]
[1736666073279,6.1933228,3268.8,3268.7,9.77814266]
[1736666084601,6.1182,3268.8,3268.7,9.77814266]
[1736666085908,0.7559,3270.0,3268.7,11.85109877]
[1736666086107,0.209,3269.9,3269.7,0.0075]
[1736666086421,0.28517871,3269.9,3269.7,0.0075]
[1736666086817,0.07617871,3269.9,3269.6,1.24505715]
[1736666087151,0.209,3270.1,3269.8,1.21447611]
[1736666087604,0.07688364,3270.0,3269.8,1.21447611]
[1736666088191,0.07688364,3270.0,3269.7,0.015]
[1736666090809,0.209,3270.1,3269.7,0.015]
[1736666092743,0.07450339,3270.0,3269.7,0.015]
[1736666093102,0.209,3270.1,3269.7,0.015]
[1736666100268,0.7563,3270.0,3269.5,5.32]
[1736666100658,0.7563,3269.8,3269.5,5.32]
[1736666101058,0.0743907,3269.7,3269.5,5.32]
[1736666101255,0.7563,3269.8,3269.5,5.32]
[1736666101575,0.07352803,3269.6,3269.5,5.3275]
[1736666101745,0.7563,3269.8,3269.5,5.3275]
[1736666102147,0.0743907,3269.7,3269.5,6.54197611]
[1736666102545,0.7563,3269.8,3269.5,6.54197611]
[1736666103305,0.0743907,3269.7,3269.5,6.54197611]
[1736666103475,0.7563,3269.8,3269.5,6.54197611]
[1736666103674,0.7563,3269.8,3269.6,0.0075]
[1736666103849,0.7825,3270.0,3269.7,1.21447611]
[1736666105550,0.07374715,3269.9,3269.7,1.21447611]
[1736666105903,0.7825,3270.0,3269.7,1.21447611]
[1736666106449,0.07374715,3269.9,3269.7,1.21447611]
[1736666106633,0.7825,3270.0,3269.7,1.21447611]
[1736666106830,0.07370956,3269.8,3269.7,1.21447611]
[1736666107053,0.7825,3270.0,3269.7,1.21447611]
[1736666107251,0.07370956,3269.8,3269.7,1.21447611]
[1736666107454,0.7825,3270.0,3269.7,1.21447611]
[1736666107721,0.07370956,3269.8,3269.7,1.21447611]
[1736666107988,0.7825,3270.0,3269.7,1.21447611]
[1736666108401,0.07374715,3269.9,3269.7,1.21447611]
[1736666108703,0.7825,3270.0,3269.7,1.21447611]
[1736666109258,0.7825,3270.0,3269.8,0.03808171]
[1736666109471,0.7825,3270.0,3269.8,0.0075]
[1736666109769,0.07382732,3269.9,3269.8,0.0075]
[1736666115206,0.209,3270.1,3269.8,0.0075]
[1736666115424,0.07368246,3269.9,3269.8,0.03807926]
[1736666115732,0.07372005,3270.0,3269.8,0.03807926]
[1736666116029,0.208,3270.2,3270.0,0.0075]
[1736666116334,0.208,3270.2,3270.1,1.21447611]
[1736666116507,0.7673,3270.9,3270.2,0.015]
[1736666116720,0.9753,3270.9,3270.8,1.21447611]
[1736666117433,0.7673,3270.9,3270.8,1.21447611]
[1736666117735,0.9753,3270.9,3270.8,1.21447611]
[1736666118228,0.9753,3270.9,3270.6,1.21447611]
[1736666118911,0.07479249,3270.8,3270.6,1.21447611]
[1736666121801,0.208,3271.0,3270.6,1.21447611]
[1736666121999,0.207,3271.1,3270.8,1.21447611]
[1736666122205,0.07526006,3270.9,3270.8,1.21447611]
[1736666122405,0.207,3271.1,3270.8,1.21447611]
[1736666122607,0.07526006,3270.9,3270.8,1.21447611]
[1736666122806,0.207,3271.1,3270.8,1.21447611]
[1736666123025,0.07526006,3270.9,3270.8,1.21447611]
[1736666123209,0.207,3271.1,3270.8,1.21447611]
[1736666123739,0.07529762,3271.0,3270.8,1.21447611]
[1736666124143,0.07529762,3271.0,3270.6,3.35473611]
[1736666125879,0.7654,3270.8,3270.4,5.32]
[1736666126151,0.7654,3270.6,3270.4,5.32]
[1736666126485,0.07513116,3270.5,3270.4,5.32]
[1736666126686,0.10263125,3270.5,3270.4,5.32]
[1736666127886,0.07513116,3270.5,3270.4,5.32]
[1736666129084,0.7654,3270.9,3270.4,5.32]
[1736666129287,0.28208361,3270.8,3270.4,5.350574]
[1736666130034,0.28208361,3270.8,3270.4,7.490954]
[1736666130192,0.28208361,3270.8,3270.4,7.46038]
[1736666130536,0.207,3270.8,3270.4,5.32]
[1736666134100,0.207,3270.8,3270.5,0.030574]
[1736666134312,0.207,3270.8,3270.5,0.799974]
[1736666134545,0.207,3270.9,3270.5,1.6260104]
[1736666134724,0.07515891,3270.8,3270.5,1.6260104]
[1736666134930,0.207,3270.9,3270.5,1.6260104]
[1736666135638,0.207,3270.9,3270.5,1.5954364]
[1736666135816,0.207,3270.9,3270.5,0.7694]
[1736666136017,0.07515891,3270.8,3270.5,0.7694]
[1736666137142,0.07515891,3270.8,3270.4,5.32]
[1736666137346,0.7654,3270.7,3270.4,5.32]
[1736666137550,0.0750838,3270.6,3270.4,5.32]
[1736666139305,0.9917,3270.9,3270.5,0.015]
[1736666139631,0.207,3270.9,3270.5,0.84487393]
[1736666140520,0.07515891,3270.8,3270.5,0.84487393]
[1736666141047,0.07515891,3270.8,3270.5,0.015]
[1736666141657,0.07515891,3270.8,3270.4,5.32]
[1736666141951,0.81220009,3270.7,3270.4,5.32]
[1736666142124,0.3779469,3270.6,3270.4,5.32]
[1736666142324,0.7847,3270.5,3270.4,5.32]
[1736666142622,0.85985843,3270.5,3270.4,5.32]
[1736666146122,0.85985843,3270.5,3269.5,2.94779]
[1736666146123,3.00020843,3270.5,3269.5,2.94779]
[1736666146349,0.02750009,3270.4,3269.5,2.94779]
[1736666146657,0.07511001,3270.3,3269.5,2.94779]
[1736666146846,0.07511001,3270.3,3269.5,3.242569]
[1736666147022,0.02750009,3270.4,3269.5,3.242569]
[1736666147221,0.8134,3270.3,3269.5,2.94779]
[1736666147422,0.02750009,3270.2,3269.5,2.94779]
[1736666147720,0.207,3270.1,3269.5,2.94779]
[1736666149151,0.207,3270.1,3269.6,0.03058071]
[1736666149355,0.207,3270.1,3269.8,2.91025]
[1736666149546,0.207,3270.1,3269.9,0.292525]
[1736666150118,0.8134,3270.6,3269.9,0.292525]
[1736666150456,0.2822112,3270.5,3269.8,2.94082936]
[1736666150675,0.0752112,3270.5,3270.1,2.14057]
[1736666151464,0.0752112,3270.5,3269.9,0.03]
[1736666151677,0.0752112,3270.5,3269.9,2.17071]
[1736666155155,0.10271129,3270.5,3269.9,0.03]
[1736666155474,0.0752112,3270.5,3269.9,0.03]
[1736666156029,0.0752112,3270.5,3269.9,5.35]
[1736666156339,1.0204,3270.6,3270.0,0.826029]
[1736666157662,1.0204,3270.6,3269.9,7.49073]
[1736666158169,3.16068,3270.6,3269.9,5.32]
[1736666158377,0.02750009,3270.5,3269.9,5.32]
[1736666158665,0.10258241,3270.5,3269.9,5.32]
[1736666158823,0.42890865,3270.5,3269.9,5.32]
[1736666162679,0.07508232,3270.5,3269.9,5.32]
[1736666163499,0.07508232,3270.5,3270.2,2.14802]
[1736666163640,0.07508232,3270.5,3270.4,2.15541]
[1736666163847,0.208,3270.8,3270.4,2.15541]
[1736666164074,0.208,3270.9,3270.5,2.17090291]
[1736666164578,0.07511151,3270.8,3270.5,2.17090291]
[1736666164969,0.208,3270.9,3270.5,2.17090291]
[1736666165158,0.208,3271.1,3270.6,2.14027]
[1736666165358,0.208,3271.1,3270.8,0.7742]
[1736666165569,0.075347,3271.0,3270.8,0.7742]
[1736666166948,0.208,3271.3,3270.8,0.7742]
[1736666167166,0.07556516,3271.2,3270.8,0.7742]
[1736666167373,0.208,3271.3,3270.8,0.7742]
[1736666167575,0.07556516,3271.2,3270.8,0.7742]
[1736666167904,0.07556516,3271.2,3270.8,1.06869719]
[1736666168050,0.208,3271.3,3270.8,1.06869719]
[1736666168246,0.07559704,3271.1,3270.8,1.06869719]
[1736666168492,0.07563459,3271.2,3270.8,1.06869719]
[1736666168695,0.07555948,3271.0,3270.8,1.06869719]
[1736666168989,0.208,3271.3,3270.9,0.3239469]
[1736666169210,0.8025,3272.0,3270.9,5.3425]
[1736666169356,0.8025,3272.0,3271.1,2.16244]
[1736666169357,0.02750009,3271.9,3271.1,2.16244]
[1736666169691,0.208,3271.8,3271.1,2.16244]
[1736666170460,2.94187,3272.0,3271.1,2.16244]
[1736666170461,0.8025,3272.0,3271.3,0.0075]
[1736666170658,0.208,3271.9,3271.3,0.7817]
[1736666170858,0.208,3271.9,3271.4,0.03056475]
[1736666171899,0.07629242,3271.8,3271.4,0.03056475]
[1736666173260,0.07629242,3271.8,3271.4,0.32577823]
[1736666173790,0.208,3271.7,3271.4,0.32577823]
[1736666173982,0.28432659,3271.7,3271.4,0.32577823]
[1736666174497,0.07632659,3271.7,3271.4,0.32577823]
[1736666174796,0.208,3271.8,3271.4,2.46550823]
[1736666174954,0.07628905,3271.6,3271.5,0.32472082]
[1736666175159,0.208,3271.8,3271.5,0.32472082]
[1736666175470,0.208,3271.8,3271.6,5.35806281]
[1736666175471,0.07620664,3271.7,3271.6,5.35806281]
[1736666175871,0.208,3271.8,3271.6,5.35806281]
[1736666176071,0.208,3271.8,3271.6,5.3275]
[1736666176397,0.208,3271.8,3271.7,0.56522208]
[1736666176573,0.208,3271.8,3271.6,5.3275]
[1736666182099,0.7503,3272.2,3271.6,5.3275]
[1736666182309,0.208,3271.9,3271.6,5.3275]
[1736666182609,0.07673572,3271.8,3271.6,5.3275]
[1736666183097,0.208,3271.9,3271.6,5.3275]
[1736666183296,0.208,3271.9,3271.6,6.13621843]
[1736666183508,0.07673572,3271.8,3271.6,6.13621843]
[1736666183875,9.70054403,3272.6,3271.7,0.8293]
[1736666183876,0.208,3272.1,3271.7,0.8293]
[1736666184074,0.208,3272.1,3271.8,0.03056059]
[1736666184300,0.07702963,3272.0,3271.9,0.29994006]
[1736666184671,0.208,3272.1,3271.9,0.29994006]
[1736666184985,0.07702963,3272.0,3271.9,0.29994006]
[1736666185201,0.07702963,3272.0,3271.9,0.30744006]
[1736666187004,0.208,3272.3,3271.9,0.30744006]
[1736666187303,0.07718973,3272.0,3271.9,0.30744006]
[1736666187510,0.208,3272.3,3271.9,0.30744006]
[1736666187712,0.07718973,3272.0,3271.9,0.30744006]
[1736666187911,0.208,3272.3,3271.9,0.30744006]
[1736666188108,0.07718973,3272.0,3271.9,0.30744006]
[1736666188284,0.208,3272.3,3271.9,0.30744006]
[1736666188874,0.07726479,3272.2,3271.9,0.30744006]
[1736666189275,0.208,3272.3,3271.9,0.30744006]
[1736666189916,0.07726479,3272.2,3271.9,0.30744006]
[1736666190114,0.07726479,3272.2,3271.9,0.0075]
[1736666190403,0.07722726,3272.1,3271.9,0.0075]
[1736666190582,0.07722726,3272.1,3271.6,8.26831843]
[1736666190583,0.7911,3272.0,3271.6,5.32]
[1736666190798,0.07703226,3271.9,3271.6,5.32]
[1736666192481,0.07703226,3271.9,3271.6,6.1343]
[1736666192816,0.07703226,3271.9,3271.7,0.61343]
[1736666193818,0.7911,3272.0,3271.7,0.61343]
[1736666194617,0.0771949,3271.9,3271.7,0.61343]
[1736666195021,0.9991,3272.0,3271.7,0.61343]
[1736666195537,0.0771042,3271.9,3271.7,0.61343]
[1736666195888,0.9991,3272.0,3271.7,0.61343]
[1736666196341,0.0771042,3271.9,3271.7,0.61343]
[1736666196630,0.9991,3272.0,3271.7,0.61343]
[1736666197036,0.0771042,3271.9,3271.7,0.61343]
[1736666197241,0.0771042,3271.9,3271.8,0.593343]
[1736666197443,0.208,3272.0,3271.8,0.593343]
[1736666197940,0.07713086,3271.9,3271.8,1.407643]
[1736666198814,0.07713086,3271.9,3271.8,1.430143]
[1736666199422,0.208,3272.0,3271.8,1.430143]
[1736666199793,0.07718956,3271.9,3271.8,1.430143]
[1736666199993,0.208,3272.0,3271.8,1.430143]
[1736666200189,0.07718956,3271.9,3271.8,1.430143]
[1736666200450,0.208,3272.0,3271.8,1.46070295]
[1736666200598,0.208,3272.0,3271.9,0.3600243]
[1736666200793,0.0772538,3272.0,3271.9,0.3600243]
[1736666200998,0.208,3272.3,3271.9,0.3600243]
[1736666201216,0.07732885,3272.2,3271.9,0.3600243]
[1736666201699,0.208,3272.3,3271.9,0.3600243]
[1736666202233,0.07732885,3272.2,3271.9,0.3600243]
[1736666202593,0.208,3272.3,3271.9,0.3600243]
[1736666202947,0.07732885,3272.2,3271.9,0.3600243]
[1736666203097,0.208,3272.3,3271.9,0.39058374]
[1736666203297,0.208,3272.3,3271.9,0.3600243]
[1736666203507,0.07732885,3272.2,3271.9,0.3600243]
[1736666203708,0.208,3272.3,3271.9,0.39058374]
[1736666203910,0.07746227,3272.2,3271.9,0.39058374]
[1736666204247,0.208,3272.3,3271.9,0.39058374]
[1736666204470,0.07742474,3272.1,3271.9,0.39058374]
[1736666204606,0.208,3272.3,3272.0,0.31459067]
[1736666204951,0.07746227,3272.2,3272.0,0.31459067]
[1736666205149,0.208,3272.3,3272.0,0.31459067]
[1736666205346,0.07733222,3272.2,3272.0,0.31459067]
[1736666205523,0.208,3272.3,3272.0,0.31459067]
[1736666205859,0.07732155,3272.2,3272.0,0.31459067]
[1736666206238,0.208,3272.3,3272.1,0.03055935]
[1736666206436,0.208,3272.3,3272.1,0.35701635]
[1736666208994,0.208,3272.3,3272.1,0.35701482]
[1736666209288,0.208,3272.5,3272.1,0.35701482]
[1736666209695,0.07757727,3272.4,3272.1,0.35701482]
[1736666209989,0.208,3272.5,3272.1,0.35701482]
[1736666210201,0.07757727,3272.4,3272.2,0.81309655]
[1736666210358,0.208,3272.5,3272.2,0.81309655]
[1736666210582,0.07757727,3272.4,3272.2,0.81309655]
[1736666210875,0.208,3272.5,3272.3,0.03055705]
[1736666211275,0.07768934,3272.4,3272.3,0.03055705]
[1736666211483,0.07768934,3272.4,3272.2,0.81309655]
[1736666211484,0.07768934,3272.4,3272.2,0.8436531]
[1736666211667,0.07768934,3272.4,3272.3,0.33094001]
[1736666211870,0.208,3272.5,3272.3,0.33094001]
[1736666212170,0.07768934,3272.4,3272.3,0.33094001]
[1736666212583,0.208,3272.8,3272.4,0.03]
[1736666212787,0.07756812,3272.7,3272.4,0.03]
[1736666212983,0.07756812,3272.7,3272.4,0.43931966]
[1736666213719,0.7728,3272.6,3272.0,6.1]
[1736666213914,0.7728,3272.6,3272.0,5.32]
[1736666214124,0.07748005,3272.5,3272.1,0.015]
[1736666214812,0.07748005,3272.5,3272.0,5.32]
[1736666215016,0.80030009,3272.6,3272.0,5.93]
[1736666215184,0.07751338,3272.4,3272.0,5.93]
[1736666215371,0.80030009,3272.6,3272.0,5.93]
[1736666215720,0.07755092,3272.5,3272.0,5.93]
[1736666216182,0.07755092,3272.5,3272.1,0.03055766]
[1736666216681,0.07755092,3272.5,3272.0,5.93]
[1736666217119,0.208,3272.4,3272.0,5.93]
[1736666217412,0.07740498,3272.3,3272.0,5.93]
[1736666217622,0.208,3272.4,3272.0,5.93]
[1736666217793,0.208,3272.4,3272.1,0.03055774]
[1736666217993,0.07749133,3272.3,3272.1,0.03055774]
[1736666218190,0.208,3272.4,3272.1,0.03055774]
[1736666218391,0.07747585,3272.3,3272.1,0.03055774]
[1736666218591,0.208,3272.4,3272.1,0.03055774]
[1736666218783,0.07747585,3272.3,3272.1,0.03055774]
[1736666218979,0.208,3272.4,3272.1,0.03055774]
[1736666219183,0.07747585,3272.3,3272.1,0.03055774]
[1736666219518,0.208,3272.4,3272.1,0.03055774]
[1736666219841,0.07747585,3272.3,3272.1,0.03055774]
[1736666220194,0.208,3272.4,3272.1,0.62661351]
[1736666221415,0.208,3272.4,3272.2,0.78]
[1736666224561,0.7728,3272.8,3272.2,0.78]
[1736666224717,0.208,3272.6,3272.2,0.78]
[1736666226252,0.208,3272.6,3272.1,0.0075]
[1736666226832,0.07763576,3272.5,3272.1,0.0075]
[1736666227329,0.7772,3272.4,3272.0,5.32]
[1736666227529,0.7772,3272.2,3271.7,5.32]
[1736666227734,0.7772,3272.0,3271.3,0.78]
[1736666227961,2.91656,3272.0,3271.4,0.03056548]
[1736666228268,0.07748224,3271.9,3271.4,0.03056548]
[1736666228431,0.208,3271.8,3271.3,0.78]
[1736666228771,0.07718657,3271.7,3271.3,1.39]
[1736666228974,0.208,3271.8,3271.3,1.39]
[1736666229132,0.07718657,3271.7,3271.3,1.39]
[1736666229330,0.208,3271.8,3271.3,1.39]
[1736666229734,0.07718657,3271.7,3271.3,1.39]
[1736666229971,0.208,3271.8,3271.4,0.0305648]
[1736666230141,0.07718657,3271.7,3271.4,0.0305648]
[1736666230474,0.208,3271.8,3271.4,0.0305648]
[1736666230634,0.208,3271.8,3271.4,0.38660928]
[1736666236355,0.208,3271.8,3271.4,0.38660792]
[1736666236769,0.208,3271.8,3271.4,5.70660792]
[1736666236965,0.208,3271.8,3271.4,5.67604448]
[1736666245318,0.208,3271.8,3271.5,0.03056351]
[1736666245653,0.208,3271.8,3271.5,1.07549178]
[1736666248031,3.0,3273.0,3271.6,5.335]
[1736666248356,2.94917,3272.6,3271.7,1.24342556]
[1736666248859,0.07733483,3272.5,3271.7,1.24342556]
[1736666249752,2.21637483,3272.5,3271.7,1.24342556]
[1736666250574,0.783,3272.3,3271.7,2.21972094]
[1736666250753,0.0772596,3272.2,3271.7,0.97629538]
[1736666251542,0.0772596,3272.2,3271.7,1.00685629]
[1736666253270,0.0772596,3272.2,3271.6,5.335]
[1736666253649,0.833,3272.1,3271.6,5.335]
[1736666253850,0.91022207,3272.1,3271.6,5.335]
[1736666257152,0.833,3271.9,3271.6,5.32]
[1736666257349,0.07711479,3271.8,3271.6,5.32]
[1736666258090,0.833,3271.7,3271.2,5.32]
[1736666258389,0.833,3271.5,3270.9,5.3275]
[1736666258583,0.833,3271.5,3270.9,6.05666647]
[1736666258754,0.07693261,3271.4,3270.9,6.05666647]
[1736666259775,2.97273,3271.5,3270.9,6.05666647]
[1736666259983,0.07714586,3271.4,3270.9,6.05666647]
[1736666260785,0.07714586,3271.4,3270.9,5.3275]
[1736666262265,0.07714586,3271.4,3270.9,5.32]
[1736666262790,0.07714586,3271.4,3271.0,0.04556922]
[1736666262958,0.207,3271.6,3271.1,0.7513]
[1736666265670,0.207,3271.6,3271.1,0.78186719]
[1736666266998,0.207,3271.6,3271.1,1.60755991]
[1736666269565,0.207,3271.6,3271.1,1.57699272]
[1736666270065,0.207,3271.6,3271.2,0.04556694]
[1736666273509,0.207,3271.6,3271.1,1.57255966]
[1736666273669,0.207,3271.6,3271.2,0.01834772]
[1736666274294,0.207,3271.6,3271.3,0.37307974]
[1736666274495,0.207,3271.6,3271.4,0.01834514]
[1736666274695,0.207,3271.6,3271.3,0.01834514]
[1736666274877,0.07532686,3271.5,3271.3,0.01834514]
[1736666275083,0.07532686,3271.5,3271.2,0.015]
[1736666275398,0.207,3271.6,3271.2,2.54592058]
[1736666275594,0.206,3271.8,3271.4,0.0075]
[1736666275798,0.0754769,3271.7,3271.6,0.0075]
[1736666276103,0.206,3271.8,3271.6,0.56008407]
[1736666276873,0.7904,3272.2,3271.6,0.57842058]
[1736666277086,0.206,3272.1,3271.7,5.335]
[1736666277386,0.206,3272.1,3271.8,0.01833408]
[1736666279018,0.206,3272.1,3271.8,0.0075]
[1736666279167,0.07510562,3272.0,3271.7,5.32]
[1736666279374,0.206,3272.1,3271.7,5.32]
[1736666279570,0.7904,3272.0,3271.7,5.32]
[1736666279766,0.7904,3271.8,3271.7,5.32]
[1736666280056,1.16980454,3271.8,3271.7,5.32]
[1736666281747,1.16980454,3271.8,3271.2,0.015]
[1736666281949,0.86548925,3271.8,3271.2,0.015]
[1736666282154,0.7904,3271.8,3271.2,0.03334625]
[1736666282447,0.206,3271.7,3271.2,0.03334625]
[1736666283341,0.206,3271.7,3271.2,0.015]
[1736666283835,0.7904,3271.8,3271.2,0.015]
[1736666284058,0.28097702,3271.7,3271.2,0.03334631]
[1736666284553,0.206,3271.7,3271.2,0.03334631]
[1736666284901,0.206,3271.7,3271.4,0.0075]
[1736666286216,0.206,3271.7,3271.1,5.32]
[1736666287834,0.206,3271.7,3271.2,0.01834864]
[1736666290146,0.206,3271.7,3271.1,5.32]
[1736666290307,0.206,3271.7,3271.2,0.01834865]
[1736666292247,0.206,3271.7,3271.1,7.45993]
[1736666292624,0.206,3271.7,3271.2,0.01834867]
[1736666297340,0.206,3271.7,3271.2,1.84926091]
[1736666297550,0.8021,3271.6,3270.9,3.7587]
[1736666297748,0.03820985,3271.5,3270.8,5.32]
[1736666298044,0.8021,3271.4,3270.8,5.32]
[1736666298239,0.07473444,3271.3,3270.8,5.32]
[1736666298674,2.94185,3271.4,3270.8,5.32]
[1736666299058,0.07476111,3271.3,3270.8,5.32]
[1736666300481,0.11297401,3271.3,3270.8,5.32]
[1736666302057,0.07476111,3271.3,3270.8,5.32]
[1736666303249,0.37642322,3271.3,3270.8,5.32]
[1736666303475,0.41463611,3271.3,3270.8,5.32]
[1736666303880,0.37642322,3271.3,3270.8,5.32]
[1736666304380,0.41463611,3271.3,3270.8,5.32]
[1736666304549,0.37642322,3271.3,3270.8,5.32]
[1736666304750,0.33182832,3271.2,3270.8,5.32]
[1736666304950,0.7998,3271.1,3270.8,5.32]
[1736666305150,0.87445934,3271.1,3270.8,5.32]
[1736666305460,0.7998,3271.1,3270.8,5.32]
[1736666306463,0.207,3271.2,3270.8,6.0994]
[1736666307362,0.207,3271.2,3270.9,0.01835862]
[1736666308256,0.207,3271.2,3270.8,5.32]
[1736666308471,0.7998,3271.1,3270.8,5.32]
[1736666309748,0.07440826,3271.0,3270.8,5.32]
[1736666311990,0.7998,3270.9,3270.8,5.32]
[1736666312159,1.10504641,3270.9,3270.8,5.32]
[1736666312353,1.17931038,3270.9,3270.8,5.32]
[1736666313210,3.01414397,3270.9,3270.8,5.32]
[1736666314576,0.87406397,3270.9,3270.8,5.32]
[1736666314759,0.87406397,3270.9,3270.3,0.7794]
[1736666317216,0.07426397,3270.9,3270.4,0.03]
[1736666317413,0.28126397,3270.9,3270.5,2.15869361]
[1736666317718,0.207,3270.9,3270.5,0.01836361]
[1736666318370,0.207,3270.9,3270.4,0.04836376]